[Event "*** Titled Tuesday Blitz AM"]
[Site "Chess.com"]
[Date "2020.01.07"]
[Round "3"]
[White "mishanick"]
[Black "Boundless_Strike"]
[Result "1-0"]
[WhiteElo "2968"]
[BlackElo "2721"]
[TimeControl "180+2"]
[EndTime "9:36:21 PST"]
[Termination "mishanick won on time"]

1. d4 {[%clk 0:03:01.9]} 1... f5 {[%clk 0:02:55]} 2. c4 {[%clk 0:03:00.8]} 2...
Nf6 {[%clk 0:02:56.4]} 3. Nf3 {[%clk 0:03:00.5]} 3... g6 {[%clk 0:02:57.6]} 4.
g3 {[%clk 0:03:01.4]} 4... Bg7 {[%clk 0:02:56.1]} 5. Bg2 {[%clk 0:03:03.3]} 5...
O-O {[%clk 0:02:57.7]} 6. O-O {[%clk 0:03:03]} 6... d6 {[%clk 0:02:59]} 7. Nc3
{[%clk 0:03:04.6]} 7... c6 {[%clk 0:03:00]} 8. Rb1 {[%clk 0:03:05.1]} 8... Na6
{[%clk 0:02:47.6]} 9. b4 {[%clk 0:03:03.3]} 9... Nc7 {[%clk 0:02:45.9]} 10. b5
{[%clk 0:03:03.1]} 10... Qe8 {[%clk 0:02:43.8]} 11. bxc6 {[%clk 0:03:02.6]}
11... bxc6 {[%clk 0:02:44.4]} 12. Qa4 {[%clk 0:03:03.8]} 12... Ne4 {[%clk
0:02:32.8]} 13. Bb2 {[%clk 0:03:04.1]} 13... Bd7 {[%clk 0:02:20.1]} 14. Qa5
{[%clk 0:03:02.6]} 14... Ne6 {[%clk 0:02:21.4]} 15. e3 {[%clk 0:03:02.7]} 15...
Qd8 {[%clk 0:02:10.1]} 16. Qxd8 {[%clk 0:03:02.3]} 16... Raxd8 {[%clk
0:02:07.8]} 17. Nxe4 {[%clk 0:03:02.6]} 17... fxe4 {[%clk 0:02:08.9]} 18. Nd2
{[%clk 0:03:02]} 18... d5 {[%clk 0:02:09]} 19. Ba3 {[%clk 0:03:03.6]} 19... Rf7
{[%clk 0:01:35.5]} 20. Rb7 {[%clk 0:03:02.5]} 20... Bh6 {[%clk 0:01:36.1]} 21.
Rxa7 {[%clk 0:02:56.8]} 21... Nxd4 {[%clk 0:01:33.8]} 22. Bc5 {[%clk 0:02:46.6]}
22... Ne2+ {[%clk 0:01:22]} 23. Kh1 {[%clk 0:02:46.1]} 23... Be6 {[%clk
0:01:13]} 24. cxd5 {[%clk 0:02:46.4]} 24... cxd5 {[%clk 0:01:03.7]} 25. Nb3
{[%clk 0:02:16.1]} 25... Rdf8 {[%clk 0:00:31.6]} 26. Rxe7 {[%clk 0:02:03.4]}
26... Rxe7 {[%clk 0:00:19.3]} 27. Bxe7 {[%clk 0:02:05.3]} 27... Rc8 {[%clk
0:00:19.7]} 28. Bc5 {[%clk 0:02:04.2]} 28... Bf8 {[%clk 0:00:18.1]} 29. Bxf8
{[%clk 0:02:03.8]} 29... Kxf8 {[%clk 0:00:20]} 30. Re1 {[%clk 0:02:04.5]} 30...
Rc2 {[%clk 0:00:20.9]} 31. a4 {[%clk 0:02:03.8]} 31... Bd7 {[%clk 0:00:15.3]}
32. a5 {[%clk 0:02:04.5]} 32... Bb5 {[%clk 0:00:16.9]} 33. Bf1 {[%clk
0:02:04.8]} 33... Rb2 {[%clk 0:00:14]} 34. Bxe2 {[%clk 0:02:04]} 34... Bxe2
{[%clk 0:00:11.4]} 35. Nd4 {[%clk 0:02:05]} 35... Ba6 {[%clk 0:00:11.4]} 36. Kg2
{[%clk 0:02:05.4]} 36... Ra2 {[%clk 0:00:12.4]} 37. Rb1 {[%clk 0:02:06.4]} 37...
Rxa5 {[%clk 0:00:12.3]} 38. Rb8+ {[%clk 0:02:08]} 38... Kg7 {[%clk 0:00:13.3]}
39. g4 {[%clk 0:02:08.7]} 39... Ra1 {[%clk 0:00:10.2]} 40. g5 {[%clk 0:02:06.9]}
40... Bf1+ {[%clk 0:00:07.8]} 41. Kg3 {[%clk 0:02:07.2]} 1-0

[Event "*** Titled Tuesday Blitz AM"]
[Site "Chess.com"]
[Date "2020.01.07"]
[Round "3"]
[White "GremioPrudente"]
[Black "Zq1"]
[Result "0-1"]
[WhiteElo "2263"]
[BlackElo "2578"]
[TimeControl "180+2"]
[EndTime "9:36:21 PST"]
[Termination "Zq1 won on time"]

1. Nf3 {[%clk 0:03:01.9]} 1... Nf6 {[%clk 0:02:59.9]} 2. c4 {[%clk 0:03:02.1]}
2... e6 {[%clk 0:03:00.2]} 3. d4 {[%clk 0:03:02.8]} 3... d5 {[%clk 0:03:01.3]}
4. Nc3 {[%clk 0:03:03.8]} 4... Be7 {[%clk 0:03:02.3]} 5. Bg5 {[%clk 0:03:04.5]}
5... O-O {[%clk 0:03:03.3]} 6. e3 {[%clk 0:03:05.3]} 6... b6 {[%clk 0:03:02.5]}
7. cxd5 {[%clk 0:03:02.8]} 7... Nxd5 {[%clk 0:03:02.8]} 8. Bxe7 {[%clk
0:03:02.9]} 8... Qxe7 {[%clk 0:03:03.9]} 9. Nxd5 {[%clk 0:03:03.8]} 9... exd5
{[%clk 0:03:04.9]} 10. Qa4 {[%clk 0:03:02.8]} 10... c5 {[%clk 0:03:01.4]} 11.
dxc5 {[%clk 0:02:58.9]} 11... bxc5 {[%clk 0:03:01.7]} 12. Be2 {[%clk 0:02:56.3]}
12... Be6 {[%clk 0:03:01.6]} 13. O-O {[%clk 0:02:56.9]} 13... Nd7 {[%clk
0:03:00.8]} 14. Rfd1 {[%clk 0:02:57.3]} 14... Nb6 {[%clk 0:02:58.6]} 15. Qa3
{[%clk 0:02:21]} 15... a5 {[%clk 0:02:49.5]} 16. Rac1 {[%clk 0:02:08.4]} 16...
Rfc8 {[%clk 0:02:48.3]} 17. Nd4 {[%clk 0:01:56.1]} 17... Kf8 {[%clk 0:02:45.4]}
18. Nxe6+ {[%clk 0:01:48.1]} 18... fxe6 {[%clk 0:02:45.3]} 19. Qd3 {[%clk
0:01:48.6]} 19... Kg8 {[%clk 0:02:36.4]} 20. Rc2 {[%clk 0:01:40.6]} 20... c4
{[%clk 0:02:29.8]} 21. Qd4 {[%clk 0:01:19]} 21... Rab8 {[%clk 0:02:20.2]} 22.
Bg4 {[%clk 0:01:03.2]} 22... e5 {[%clk 0:02:06.2]} 23. Qd2 {[%clk 0:01:00.4]}
23... Rc5 {[%clk 0:02:05.6]} 24. Bf3 {[%clk 0:00:54.6]} 24... Rd8 {[%clk
0:01:59.7]} 25. b4 {[%clk 0:00:41.9]} 25... axb4 {[%clk 0:01:36.1]} 26. Qxb4
{[%clk 0:00:41.8]} 26... Qd6 {[%clk 0:01:36.4]} 27. Rb1 {[%clk 0:00:33.5]} 27...
Rc6 {[%clk 0:01:35]} 28. Qxd6 {[%clk 0:00:31]} 28... Rcxd6 {[%clk 0:01:33.4]}
29. Rcb2 {[%clk 0:00:27.4]} 29... Na4 {[%clk 0:01:31.2]} 30. Rb8 {[%clk
0:00:19.3]} 30... Nc3 {[%clk 0:01:30.1]} 31. Rxd8+ {[%clk 0:00:18.3]} 31... Rxd8
{[%clk 0:01:30.2]} 32. Ra1 {[%clk 0:00:12.7]} 32... d4 {[%clk 0:01:24.5]} 33.
exd4 {[%clk 0:00:11.7]} 33... exd4 {[%clk 0:01:25.3]} 34. Kf1 {[%clk 0:00:12.9]}
34... d3 {[%clk 0:01:24.2]} 35. Bd1 {[%clk 0:00:06.3]} 35... Nxd1 {[%clk
0:01:23.4]} 36. Rxd1 {[%clk 0:00:06.1]} 36... c3 {[%clk 0:01:24.6]} 37. Ke1
{[%clk 0:00:04.1]} 37... c2 {[%clk 0:01:21.5]} 0-1

[Event "*** Titled Tuesday Blitz AM"]
[Site "Chess.com"]
[Date "2020.01.07"]
[Round "3"]
[White "ferdipy"]
[Black "wild_cat99"]
[Result "0-1"]
[WhiteElo "2242"]
[BlackElo "2418"]
[TimeControl "180+2"]
[EndTime "9:36:29 PST"]
[Termination "wild_cat99 won by checkmate"]

1. e4 {[%clk 0:03:01.9]} 1... c5 {[%clk 0:02:59.5]} 2. Nf3 {[%clk 0:03:01.7]}
2... d6 {[%clk 0:03:00.2]} 3. d4 {[%clk 0:03:02.4]} 3... cxd4 {[%clk 0:03:02.1]}
4. Nxd4 {[%clk 0:03:04]} 4... Nf6 {[%clk 0:03:03.6]} 5. Nc3 {[%clk 0:03:05.9]}
5... a6 {[%clk 0:03:04.6]} 6. Be3 {[%clk 0:03:06.2]} 6... e6 {[%clk 0:03:05.7]}
7. Nf3 {[%clk 0:03:08.1]} 7... Be7 {[%clk 0:03:05]} 8. Bd3 {[%clk 0:03:09.4]}
8... b5 {[%clk 0:03:03.5]} 9. O-O {[%clk 0:03:06.2]} 9... Bb7 {[%clk 0:03:04.2]}
10. Nd2 {[%clk 0:03:06.9]} 10... Nbd7 {[%clk 0:03:00.6]} 11. f4 {[%clk
0:03:06.7]} 11... Nc5 {[%clk 0:03:01.2]} 12. a3 {[%clk 0:03:05.7]} 12... O-O
{[%clk 0:02:55.3]} 13. Qe2 {[%clk 0:03:06.3]} 13... Rc8 {[%clk 0:02:49.9]} 14.
Rae1 {[%clk 0:03:04]} 14... d5 {[%clk 0:02:38.2]} 15. e5 {[%clk 0:03:01.6]}
15... Nfe4 {[%clk 0:02:36.3]} 16. Bd4 {[%clk 0:02:52.1]} 16... Nxc3 {[%clk
0:02:30.4]} 17. Bxc3 {[%clk 0:02:49.8]} 17... d4 {[%clk 0:02:30.1]} 18. Bb4
{[%clk 0:02:49.3]} 18... Nxd3 {[%clk 0:02:15.1]} 19. Bxe7 {[%clk 0:02:38.1]}
19... Qxe7 {[%clk 0:02:15.5]} 20. Qxd3 {[%clk 0:02:37.1]} 20... Qc5 {[%clk
0:02:16.1]} 21. Rc1 {[%clk 0:02:33.3]} 21... Qc6 {[%clk 0:02:09.6]} 22. Nf3
{[%clk 0:02:33]} 22... Rfd8 {[%clk 0:02:09.8]} 23. Rfd1 {[%clk 0:02:28.3]} 23...
Rc7 {[%clk 0:02:00.2]} 24. c3 {[%clk 0:02:15.1]} 24... Rdd7 {[%clk 0:01:21.4]}
25. cxd4 {[%clk 0:01:16.9]} 25... Qxc1 {[%clk 0:01:20.2]} 26. Rxc1 {[%clk
0:01:18.8]} 26... Rxc1+ {[%clk 0:01:22]} 27. Kf2 {[%clk 0:01:20.2]} 27... Rdc7
{[%clk 0:01:19.5]} 28. f5 {[%clk 0:01:07.4]} 28... R7c2+ {[%clk 0:01:14.1]} 29.
Kg3 {[%clk 0:01:07.7]} 29... Rxb2 {[%clk 0:01:14.5]} 30. f6 {[%clk 0:01:00.9]}
30... h5 {[%clk 0:00:47.6]} 31. Qe3 {[%clk 0:00:59]} 31... Rcc2 {[%clk
0:00:46.7]} 32. Ne1 {[%clk 0:00:55.3]} 32... Re2 {[%clk 0:00:46.9]} 33. Qc3
{[%clk 0:00:47.4]} 33... g5 {[%clk 0:00:39.8]} 34. h4 {[%clk 0:00:42.6]} 34...
Rxg2+ {[%clk 0:00:38.8]} 35. Nxg2 {[%clk 0:00:41.9]} 35... Rxg2+ {[%clk
0:00:40.7]} 36. Kh3 {[%clk 0:00:35.5]} 36... g4# {[%clk 0:00:41.8]} 0-1

[Event "*** Titled Tuesday Blitz AM"]
[Site "Chess.com"]
[Date "2020.01.07"]
[Round "3"]
[White "Vugar_Manafov"]
[Black "gemarin"]
[Result "1-0"]
[WhiteElo "2529"]
[BlackElo "2045"]
[TimeControl "180+2"]
[EndTime "9:36:30 PST"]
[Termination "Vugar_Manafov won on time"]

1. Nf3 {[%clk 0:03:01.7]} 1... d5 {[%clk 0:02:59.9]} 2. g3 {[%clk 0:03:01.2]}
2... c6 {[%clk 0:03:00.6]} 3. Bg2 {[%clk 0:03:00.3]} 3... Nf6 {[%clk 0:02:00.2]}
4. O-O {[%clk 0:02:59.2]} 4... Bf5 {[%clk 0:02:02]} 5. d3 {[%clk 0:02:59.7]}
5... e6 {[%clk 0:02:03.9]} 6. Nh4 {[%clk 0:03:00.4]} 6... h6 {[%clk 0:02:05.8]}
7. Nxf5 {[%clk 0:03:01.1]} 7... exf5 {[%clk 0:02:04.6]} 8. Nd2 {[%clk
0:03:02.4]} 8... Nbd7 {[%clk 0:02:04.2]} 9. c4 {[%clk 0:03:03.4]} 9... Nb6
{[%clk 0:02:01.5]} 10. b3 {[%clk 0:03:01.7]} 10... Be7 {[%clk 0:02:00.2]} 11.
Bb2 {[%clk 0:03:01.6]} 11... O-O {[%clk 0:02:01.1]} 12. Nf3 {[%clk 0:03:01.7]}
12... Qd7 {[%clk 0:01:47]} 13. Rc1 {[%clk 0:02:58.9]} 13... Rfe8 {[%clk
0:01:46.2]} 14. Rc2 {[%clk 0:02:57.1]} 14... Rad8 {[%clk 0:01:43.1]} 15. Qa1
{[%clk 0:02:56]} 15... dxc4 {[%clk 0:01:19]} 16. bxc4 {[%clk 0:02:55.3]} 16...
Qc8 {[%clk 0:01:10.6]} 17. Rb1 {[%clk 0:02:53.4]} 17... Nbd7 {[%clk 0:01:10]}
18. Bd4 {[%clk 0:02:47.1]} 18... b6 {[%clk 0:01:07.6]} 19. a4 {[%clk 0:02:43.5]}
19... Bc5 {[%clk 0:00:52.4]} 20. a5 {[%clk 0:02:37.3]} 20... Bxd4 {[%clk
0:00:44.7]} 21. Nxd4 {[%clk 0:02:38.9]} 21... Ne5 {[%clk 0:00:34.2]} 22. axb6
{[%clk 0:02:38.3]} 22... axb6 {[%clk 0:00:30.6]} 23. Rxb6 {[%clk 0:02:39.3]}
23... c5 {[%clk 0:00:30.1]} 24. Nb5 {[%clk 0:02:36.3]} 24... Re6 {[%clk
0:00:23]} 25. Rxe6 {[%clk 0:02:34.4]} 25... Qxe6 {[%clk 0:00:22.5]} 26. Ra2
{[%clk 0:02:34.4]} 26... Neg4 {[%clk 0:00:20.4]} 27. h3 {[%clk 0:02:24.1]} 27...
Ne5 {[%clk 0:00:19.9]} 28. Ra6 {[%clk 0:02:18]} 28... Qe7 {[%clk 0:00:15.8]} 29.
Ra8 {[%clk 0:02:17.3]} 29... Rxa8 {[%clk 0:00:13.4]} 30. Qxa8+ {[%clk 0:02:19]}
30... Kh7 {[%clk 0:00:15.3]} 31. Qa7 {[%clk 0:02:13.2]} 31... Ned7 {[%clk
0:00:15]} 32. Bf3 {[%clk 0:02:09.8]} 32... Qe5 {[%clk 0:00:14.2]} 33. Qc7 {[%clk
0:02:06.8]} 33... Qa1+ {[%clk 0:00:13.2]} 34. Kg2 {[%clk 0:02:06.9]} 34... Qb2
{[%clk 0:00:11.3]} 35. Qd6 {[%clk 0:02:00.4]} 35... Kg6 {[%clk 0:00:07.6]} 36.
h4 {[%clk 0:01:58.4]} 36... h5 {[%clk 0:00:07.5]} 37. Nc7 {[%clk 0:01:55.3]}
37... Ne5 {[%clk 0:00:05.8]} 38. Nd5 {[%clk 0:01:52.1]} 38... Nxf3 {[%clk
0:00:04.1]} 39. exf3 {[%clk 0:01:54]} 1-0

[Event "*** Titled Tuesday Blitz AM"]
[Site "Chess.com"]
[Date "2020.01.07"]
[Round "3"]
[White "econpower"]
[Black "Region_07"]
[Result "1-0"]
[WhiteElo "2635"]
[BlackElo "2371"]
[TimeControl "180+2"]
[EndTime "9:36:40 PST"]
[Termination "econpower won on time"]

1. c4 {[%clk 0:02:58.2]} 1... f5 {[%clk 0:02:56.7]} 2. g3 {[%clk 0:02:59.2]}
2... Nf6 {[%clk 0:02:56.6]} 3. Bg2 {[%clk 0:03:01.1]} 3... g6 {[%clk 0:02:56.8]}
4. Nc3 {[%clk 0:03:02]} 4... Bg7 {[%clk 0:02:58.2]} 5. e3 {[%clk 0:03:03.9]}
5... O-O {[%clk 0:02:59.2]} 6. Nge2 {[%clk 0:03:05.8]} 6... d6 {[%clk
0:02:59.4]} 7. O-O {[%clk 0:03:07.1]} 7... c6 {[%clk 0:02:53.8]} 8. d3 {[%clk
0:03:07.7]} 8... e5 {[%clk 0:02:53.3]} 9. Rb1 {[%clk 0:03:02.8]} 9... a5 {[%clk
0:02:54]} 10. a3 {[%clk 0:03:03.6]} 10... Be6 {[%clk 0:02:48.5]} 11. b4 {[%clk
0:03:00.1]} 11... axb4 {[%clk 0:02:49.3]} 12. axb4 {[%clk 0:03:02]} 12... Qc7
{[%clk 0:02:39.8]} 13. Qc2 {[%clk 0:02:55.5]} 13... Nbd7 {[%clk 0:02:25.7]} 14.
Rd1 {[%clk 0:02:51.7]} 14... Kh8 {[%clk 0:02:12.7]} 15. h3 {[%clk 0:02:50.7]}
15... Rac8 {[%clk 0:02:04.2]} 16. f4 {[%clk 0:02:48.4]} 16... d5 {[%clk
0:02:03.6]} 17. c5 {[%clk 0:02:22.1]} 17... Bg8 {[%clk 0:01:40.2]} 18. fxe5
{[%clk 0:02:15.7]} 18... Nxe5 {[%clk 0:01:40]} 19. Nd4 {[%clk 0:02:16.8]} 19...
Rce8 {[%clk 0:01:38.2]} 20. Nce2 {[%clk 0:02:17.1]} 20... Bf7 {[%clk 0:01:28]}
21. b5 {[%clk 0:02:16.9]} 21... Ned7 {[%clk 0:01:04.3]} 22. Bd2 {[%clk
0:02:14.6]} 22... Re7 {[%clk 0:00:58.1]} 23. bxc6 {[%clk 0:02:13.1]} 23... bxc6
{[%clk 0:00:58.8]} 24. Qa4 {[%clk 0:02:14.4]} 24... Ne5 {[%clk 0:00:55.2]} 25.
Be1 {[%clk 0:02:05.1]} 25... Be8 {[%clk 0:00:51]} 26. Rb6 {[%clk 0:02:03.2]}
26... Bd7 {[%clk 0:00:51]} 27. Qb3 {[%clk 0:02:01.2]} 27... g5 {[%clk
0:00:50.7]} 28. Rb7 {[%clk 0:01:52.7]} 28... Qc8 {[%clk 0:00:50.9]} 29. Kh2
{[%clk 0:01:50.9]} 29... h5 {[%clk 0:00:26.7]} 30. Nxf5 {[%clk 0:01:47.9]} 30...
Bxf5 {[%clk 0:00:16.5]} 31. Rxe7 {[%clk 0:01:48.1]} 31... Ng6 {[%clk 0:00:16.6]}
32. Ra7 {[%clk 0:01:44.8]} 32... h4 {[%clk 0:00:17.5]} 33. Qb7 {[%clk 0:01:43]}
33... Qxb7 {[%clk 0:00:16]} 34. Rxb7 {[%clk 0:01:43.5]} 34... hxg3+ {[%clk
0:00:16.9]} 35. Bxg3 {[%clk 0:01:42.9]} 35... g4 {[%clk 0:00:18.8]} 36. Nd4
{[%clk 0:01:41.7]} 36... Bc8 {[%clk 0:00:18.1]} 37. Rb8 {[%clk 0:01:39]} 37...
Nh5 {[%clk 0:00:16.1]} 38. Bd6 {[%clk 0:01:38.2]} 38... Rg8 {[%clk 0:00:14.5]}
39. Nxc6 {[%clk 0:01:34.9]} 39... gxh3 {[%clk 0:00:13.7]} 40. Bxh3 {[%clk
0:01:32]} 40... Bxh3 {[%clk 0:00:13]} 41. Rxg8+ {[%clk 0:01:32.7]} 41... Kxg8
{[%clk 0:00:14.9]} 42. Kxh3 {[%clk 0:01:34.5]} 42... Nf6 {[%clk 0:00:13.7]} 43.
Ne7+ {[%clk 0:01:32]} 43... Nxe7 {[%clk 0:00:14]} 44. Bxe7 {[%clk 0:01:33.9]}
1-0

[Event "*** Titled Tuesday Blitz AM"]
[Site "Chess.com"]
[Date "2020.01.07"]
[Round "3"]
[White "Butterfly"]
[Black "nouma78"]
[Result "0-1"]
[WhiteElo "2260"]
[BlackElo "2523"]
[TimeControl "180+2"]
[EndTime "9:36:42 PST"]
[Termination "nouma78 won by resignation"]

1. Nf3 {[%clk 0:02:58.9]} 1... d6 {[%clk 0:02:57.4]} 2. d4 {[%clk 0:02:59.2]}
2... Nf6 {[%clk 0:02:57.4]} 3. Nc3 {[%clk 0:02:55.7]} 3... Nbd7 {[%clk
0:02:54.8]} 4. e4 {[%clk 0:02:56.4]} 4... e5 {[%clk 0:02:55.3]} 5. Bc4 {[%clk
0:02:55.4]} 5... Be7 {[%clk 0:02:55.6]} 6. O-O {[%clk 0:02:55.7]} 6... O-O
{[%clk 0:02:55.3]} 7. a4 {[%clk 0:02:56.8]} 7... c6 {[%clk 0:02:54.9]} 8. Qe2
{[%clk 0:02:50.8]} 8... exd4 {[%clk 0:02:46.9]} 9. Nxd4 {[%clk 0:02:50.9]} 9...
Ne5 {[%clk 0:02:43.1]} 10. Ba2 {[%clk 0:02:51.7]} 10... c5 {[%clk 0:02:41.6]}
11. Nf5 {[%clk 0:02:44.9]} 11... Bxf5 {[%clk 0:02:39.3]} 12. exf5 {[%clk
0:02:45.9]} 12... Qd7 {[%clk 0:02:39.4]} 13. Nd5 {[%clk 0:02:36.7]} 13... Rfe8
{[%clk 0:02:21.1]} 14. Ne3 {[%clk 0:02:22.9]} 14... Nc6 {[%clk 0:01:53.8]} 15.
c3 {[%clk 0:02:22.1]} 15... d5 {[%clk 0:01:51.1]} 16. Rd1 {[%clk 0:02:12.5]}
16... d4 {[%clk 0:01:51.3]} 17. cxd4 {[%clk 0:02:06.2]} 17... Nxd4 {[%clk
0:01:52.1]} 18. Qc4 {[%clk 0:02:05.8]} 18... Bd6 {[%clk 0:01:48]} 19. Bd2 {[%clk
0:02:00.7]} 19... Rad8 {[%clk 0:01:29.4]} 20. Bc3 {[%clk 0:01:55.4]} 20... Re4
{[%clk 0:01:07.5]} 21. Qd3 {[%clk 0:01:21.5]} 21... Rh4 {[%clk 0:00:56.4]} 22.
h3 {[%clk 0:01:18.4]} 22... Be5 {[%clk 0:00:37.7]} 23. Qf1 {[%clk 0:01:10.4]}
23... Qc7 {[%clk 0:00:32.5]} 24. Nc4 {[%clk 0:00:53.8]} 24... Bh2+ {[%clk
0:00:19.8]} 25. Kh1 {[%clk 0:00:54.1]} 25... Ng4 {[%clk 0:00:18.9]} 26. Bxd4
{[%clk 0:00:46.9]} 26... cxd4 {[%clk 0:00:19.5]} 27. Rac1 {[%clk 0:00:46]} 27...
Qf4 {[%clk 0:00:19.6]} 28. Ne3 {[%clk 0:00:42.7]} 28... Nxf2+ {[%clk 0:00:19.9]}
29. Qxf2 {[%clk 0:00:42.9]} 29... Qxf2 {[%clk 0:00:21.2]} 30. Ng4 {[%clk
0:00:38.7]} 30... Rxg4 {[%clk 0:00:21.6]} 31. hxg4 {[%clk 0:00:39.4]} 31... Bf4
{[%clk 0:00:22.3]} 32. Rc4 {[%clk 0:00:36.7]} 32... Qh4+ {[%clk 0:00:20.4]} 33.
Kg1 {[%clk 0:00:36.9]} 33... Be3+ {[%clk 0:00:21.6]} 0-1

[Event "*** Titled Tuesday Blitz AM"]
[Site "Chess.com"]
[Date "2020.01.07"]
[Round "3"]
[White "julinha97"]
[Black "yy2324"]
[Result "0-1"]
[WhiteElo "2219"]
[BlackElo "2586"]
[TimeControl "180+2"]
[EndTime "9:36:43 PST"]
[Termination "yy2324 won on time"]

1. e4 {[%clk 0:03:01.9]} 1... c5 {[%clk 0:02:57]} 2. Nf3 {[%clk 0:03:02.3]} 2...
e6 {[%clk 0:02:58.3]} 3. d4 {[%clk 0:03:02.7]} 3... cxd4 {[%clk 0:02:59.5]} 4.
Nxd4 {[%clk 0:03:04.6]} 4... Nc6 {[%clk 0:03:01.1]} 5. Nc3 {[%clk 0:03:05.8]}
5... Qc7 {[%clk 0:03:02.3]} 6. Be3 {[%clk 0:03:07]} 6... a6 {[%clk 0:03:03.2]}
7. Qf3 {[%clk 0:03:08.2]} 7... Nf6 {[%clk 0:03:03.8]} 8. O-O-O {[%clk
0:03:06.7]} 8... Ne5 {[%clk 0:03:03.6]} 9. Qg3 {[%clk 0:03:05.6]} 9... b5 {[%clk
0:03:05]} 10. f4 {[%clk 0:01:52]} 10... Neg4 {[%clk 0:03:00.1]} 11. Bg1 {[%clk
0:01:51.9]} 11... h5 {[%clk 0:02:59.3]} 12. e5 {[%clk 0:01:47.2]} 12... b4
{[%clk 0:02:59.5]} 13. Na4 {[%clk 0:01:42.6]} 13... Nd5 {[%clk 0:02:59.8]} 14.
h3 {[%clk 0:01:26]} 14... Nh6 {[%clk 0:02:57.6]} 15. Nb3 {[%clk 0:01:24.3]}
15... Nf5 {[%clk 0:02:46.3]} 16. Qf2 {[%clk 0:01:14.5]} 16... Nfe3 {[%clk
0:02:00.9]} 17. Rd3 {[%clk 0:00:58]} 17... Nxf1 {[%clk 0:01:35]} 18. Qxf1 {[%clk
0:00:59.9]} 18... Bb7 {[%clk 0:01:36.1]} 19. Nac5 {[%clk 0:00:50.4]} 19... Bc6
{[%clk 0:01:25]} 20. Ne4 {[%clk 0:00:35.7]} 20... Bb5 {[%clk 0:01:18]} 21. Bc5
{[%clk 0:00:26.7]} 21... Bxd3 {[%clk 0:00:57.2]} 22. Qxd3 {[%clk 0:00:28.6]}
22... Bxc5 {[%clk 0:00:52.5]} 23. Nbxc5 {[%clk 0:00:25.3]} 23... O-O {[%clk
0:00:53.6]} 24. Rf1 {[%clk 0:00:11.3]} 24... f5 {[%clk 0:00:49.3]} 25. exf6
{[%clk 0:00:11.2]} 25... Nxf6 {[%clk 0:00:50.1]} 26. Nxf6+ {[%clk 0:00:11.5]}
26... Rxf6 {[%clk 0:00:50.5]} 27. Nxd7 {[%clk 0:00:06.2]} 27... Rxf4 {[%clk
0:00:47.8]} 28. Rd1 {[%clk 0:00:06.8]} 28... Rc8 {[%clk 0:00:42.2]} 29. Qd2
{[%clk 0:00:04.6]} 29... Rd4 {[%clk 0:00:39.7]} 30. Qe2 {[%clk 0:00:02.6]} 30...
Rxd7 {[%clk 0:00:39.8]} 31. Qxe6+ {[%clk 0:00:03.6]} 31... Kh8 {[%clk
0:00:40.7]} 0-1

[Event "*** Titled Tuesday Blitz AM"]
[Site "Chess.com"]
[Date "2020.01.07"]
[Round "3"]
[White "HarryCun"]
[Black "karinachess1"]
[Result "0-1"]
[WhiteElo "2053"]
[BlackElo "2473"]
[TimeControl "180+2"]
[EndTime "9:36:47 PST"]
[Termination "karinachess1 won on time"]

1. d4 {[%clk 0:03:01.9]} 1... d6 {[%clk 0:02:59.8]} 2. c4 {[%clk 0:03:03.8]}
2... e5 {[%clk 0:03:00.8]} 3. dxe5 {[%clk 0:03:02.8]} 3... dxe5 {[%clk
0:03:01.8]} 4. Qxd8+ {[%clk 0:03:04.3]} 4... Kxd8 {[%clk 0:03:03.7]} 5. Nc3
{[%clk 0:03:03.2]} 5... Be6 {[%clk 0:02:59.8]} 6. e4 {[%clk 0:02:59.4]} 6... c6
{[%clk 0:02:58.5]} 7. Nf3 {[%clk 0:02:59.4]} 7... f6 {[%clk 0:02:57]} 8. Be3
{[%clk 0:02:59.6]} 8... Nd7 {[%clk 0:02:57]} 9. Rd1 {[%clk 0:02:59.3]} 9... Kc7
{[%clk 0:02:57.2]} 10. Be2 {[%clk 0:02:54.7]} 10... a5 {[%clk 0:02:34.9]} 11.
O-O {[%clk 0:02:51.6]} 11... g5 {[%clk 0:02:28.8]} 12. Na4 {[%clk 0:02:49.2]}
12... Nh6 {[%clk 0:02:15.6]} 13. h3 {[%clk 0:02:38.9]} 13... Nf7 {[%clk
0:02:14.5]} 14. Rd2 {[%clk 0:02:37]} 14... h5 {[%clk 0:02:13.4]} 15. Rfd1 {[%clk
0:02:36.5]} 15... Rd8 {[%clk 0:02:00.8]} 16. c5 {[%clk 0:01:53.5]} 16... Be7
{[%clk 0:01:44.9]} 17. Kh2 {[%clk 0:01:45.9]} 17... Rhg8 {[%clk 0:01:36.3]} 18.
b3 {[%clk 0:01:33]} 18... f5 {[%clk 0:01:23.5]} 19. exf5 {[%clk 0:01:32.1]}
19... Bxf5 {[%clk 0:01:25.4]} 20. Ne1 {[%clk 0:01:07.3]} 20... g4 {[%clk
0:01:22]} 21. Nd3 {[%clk 0:01:04.9]} 21... Bg5 {[%clk 0:00:55.6]} 22. Bxg5
{[%clk 0:01:00.8]} 22... Nxg5 {[%clk 0:00:57.5]} 23. Ndb2 {[%clk 0:00:42.7]}
23... Ne4 {[%clk 0:00:57.4]} 24. Rxd7+ {[%clk 0:00:06.2]} 24... Rxd7 {[%clk
0:00:55.1]} 25. Rxd7+ {[%clk 0:00:06.5]} 25... Bxd7 {[%clk 0:00:55.2]} 26. Nc4
{[%clk 0:00:07.5]} 26... Nxf2 {[%clk 0:00:51.4]} 27. Nxe5 {[%clk 0:00:08.2]}
27... g3+ {[%clk 0:00:46.3]} 28. Kg1 {[%clk 0:00:08.3]} 28... Be6 {[%clk
0:00:44.1]} 29. Nb6 {[%clk 0:00:08.2]} 29... Rd8 {[%clk 0:00:42]} 30. Bxh5
{[%clk 0:00:07.3]} 30... Rd2 {[%clk 0:00:36.9]} 31. Bf3 {[%clk 0:00:02.3]} 31...
Rxa2 {[%clk 0:00:33.8]} 0-1